bitfinex/quotes_ETHUSD_20250414
["timestamp","ask_amount","ask_price","bid_price","bid_amount"]
[1744659745112,12.94093,1641.3,1641.0,6.09374]
[1744659745317,6.84793,1641.3,1641.0,6.09374]
[1744659745513,0.7551,1641.3,1641.0,6.09374]
[1744659745833,12.94097,1641.3,1641.0,6.09374]
[1744659747616,23.92289,1641.4,1641.0,6.88023]
[1744659747917,17.83037,1641.4,1641.2,6.09308]
[1744659748218,17.83037,1641.4,1641.1,6.09335]
[1744659748518,17.83037,1641.4,1641.1,12.1867]
[1744659748712,17.83037,1641.4,1641.1,6.09335]
[1744659748920,17.83037,1641.4,1641.1,12.18671]
[1744659749415,11.738,1641.4,1641.2,6.09306]
[1744659749620,14.207622,1641.4,1641.1,6.09335]
[1744659749824,14.207622,1641.4,1641.0,0.7865]
[1744659749825,6.09283,1641.3,1641.0,12.97399]
[1744659750026,12.18572,1641.3,1641.0,6.88024]
[1744659750240,12.18572,1641.3,1641.0,6.09374]
[1744659750393,6.09283,1641.3,1641.0,6.09374]
[1744659750593,6.09283,1641.3,1641.0,6.09372]
[1744659751220,8.612072,1641.4,1641.1,6.09314]
[1744659751524,8.612072,1641.4,1641.1,12.18637]
[1744659751840,6.09273,1641.3,1641.0,12.18766]
[1744659752212,0.05,1641.4,1641.2,6.09299]
[1744659752628,0.05,1641.4,1641.2,12.18599]
[1744659753342,0.05,1641.4,1641.2,6.09299]
[1744659753494,0.05,1641.4,1641.2,12.18598]
[1744659753694,0.05,1641.4,1641.3,6.09273]
[1744659755199,0.05,1641.4,1641.2,13.483238]
[1744659755606,0.05,1641.4,1641.1,0.7878]
[1744659755797,12.2352,1641.4,1641.2,4.0]
[1744659756000,6.1425,1641.4,1641.2,4.0]
[1744659756401,12.2352,1641.4,1641.2,4.0]
[1744659756596,6.1425,1641.4,1641.1,6.09346]
[1744659756900,12.23498,1641.4,1641.1,6.09346]
[1744659757399,14.013178,1641.4,1641.1,6.09346]
[1744659758342,0.05,1641.4,1641.0,6.15477248]
[1744659758532,0.05,1641.4,1641.2,12.18561]
[1744659758725,0.05,1641.4,1641.2,6.09276]
[1744659760699,6.14238,1641.4,1641.1,6.09336]
[1744659760904,6.14238,1641.4,1641.1,12.18671]
[1744659761333,6.14238,1641.4,1641.1,6.09335]
[1744659761522,6.14238,1641.4,1641.1,12.1867]
[1744659761926,6.14238,1641.4,1641.1,12.18672]
[1744659762123,12.23487,1641.4,1641.1,6.09335]
[1744659762325,6.14238,1641.4,1641.1,12.18672]
[1744659762908,12.23509,1641.4,1641.1,6.09335]
[1744659763109,6.14238,1641.4,1641.1,6.09335]
[1744659763339,6.09274,1641.3,1641.1,6.09335]
[1744659763739,6.14238,1641.4,1641.1,6.09335]
[1744659764244,6.14238,1641.4,1641.1,12.18673]
[1744659765461,12.23487,1641.4,1641.1,6.09335]
[1744659765822,12.23488,1641.4,1641.1,6.09335]
[1744659766457,6.14238,1641.4,1641.1,6.09335]
[1744659766657,12.2349,1641.4,1641.1,6.09335]
[1744659767471,6.09276,1641.3,1641.0,12.18748]
[1744659767666,6.85406,1641.3,1641.0,7.389928]
[1744659767874,6.85406,1641.3,1640.9,12.96278]
[1744659768030,6.09313,1641.2,1641.0,4.0]
[1744659768527,12.18657,1641.2,1641.0,4.0]
[1744659768766,6.09347,1641.1,1641.0,4.0]
[1744659770034,6.09313,1641.2,1641.0,4.0]
[1744659770231,6.09313,1641.2,1640.9,12.18831]
[1744659770437,6.09313,1641.2,1640.9,6.09412]
[1744659770671,1.294725,1641.2,1640.8,6.91399]
[1744659770871,6.09364,1641.1,1640.9,4.0]
[1744659771058,12.18733,1641.1,1640.9,4.0]
[1744659771285,6.09364,1641.1,1640.9,4.0]
[1744659771428,9.86335843,1641.0,1640.9,4.0]
[1744659771635,6.09574,1640.5,1640.2,0.8158]
[1744659771943,6.09574,1640.5,1640.4,4.0]
[1744659772147,13.41525843,1640.5,1640.4,4.0]
[1744659773174,13.8713969,1640.5,1640.4,4.0]
[1744659773768,6.09693,1640.2,1639.9,6.91357]
[1744659774178,2.95801843,1640.1,1639.7,15.81224208]
[1744659774467,2.95801843,1640.1,1639.8,4.0]
[1744659774468,6.09759,1640.0,1639.8,4.0]
[1744659774975,6.09793,1639.9,1639.8,4.0]
[1744659775144,9.05594843,1639.9,1639.8,4.0]
[1744659775539,9.05594843,1639.9,1639.5,13.0241]
[1744659775783,16.71480881,1639.9,1639.6,4.0]
[1744659775997,6.91033,1639.8,1639.6,4.0]
[1744659776174,0.8119,1639.8,1639.6,10.09904]
[1744659776491,5.548,1639.9,1639.7,12.19719]
[1744659776988,5.548,1639.9,1639.7,6.09852]
[1744659777206,11.64616,1639.9,1639.6,0.7937]
[1744659777406,17.74441,1639.9,1639.6,0.7937]
[1744659778003,17.74441,1639.9,1639.4,6.0997]
[1744659778004,12.19686,1639.8,1639.4,6.925]
[1744659778164,6.09873,1639.7,1639.5,4.0]
[1744659778370,9.05674843,1639.7,1639.5,4.0]
[1744659778571,6.09873,1639.7,1639.5,4.0]
[1744659778874,6.09873,1639.7,1639.4,6.92497]
[1744659779318,6.09835,1639.8,1639.4,13.02463]
[1744659779471,14.4611196,1639.8,1639.4,13.02463]
[1744659779797,8.3625396,1639.8,1639.4,13.02463]
[1744659779995,8.3625196,1639.8,1639.4,0.8253]
[1744659780316,6.09878,1639.7,1639.4,6.92505]
[1744659780514,12.19769,1639.7,1639.4,0.8253]
[1744659780814,6.09878,1639.7,1639.4,6.09976]
[1744659781610,6.09878,1639.7,1639.3,6.10009]
[1744659781611,12.19773,1639.7,1639.3,6.10009]
[1744659781823,6.09907,1639.6,1639.3,6.10001]
[1744659782373,12.19841,1639.6,1639.2,13.00863]
[1744659782588,6.09907,1639.6,1639.3,4.0]
[1744659782790,6.09975,1639.5,1639.3,4.0]
[1744659783067,5.548,1639.5,1639.3,4.0]
[1744659783272,5.548,1639.5,1639.4,6.09979]
[1744659783580,5.548,1639.5,1639.3,6.8773]
[1744659783810,5.548,1639.5,1639.4,6.09979]
[1744659784320,5.548,1639.5,1639.3,6.8773]
[1744659785131,12.32097453,1639.5,1639.1,12.20157]
[1744659785276,12.32097453,1639.5,1639.2,4.0]
[1744659785471,6.09986,1639.4,1639.2,4.0]
[1744659785724,6.10016,1639.3,1639.2,4.0]
[1744659785905,7.397102,1639.3,1639.2,4.0]
[1744659786632,20.81452043,1639.3,1639.2,4.0]
[1744659786780,20.81452043,1639.3,1638.7,0.8232]
[1744659786781,9.10065,1639.2,1638.7,0.8232]
[1744659786973,5.549,1639.1,1639.0,6.10128]
[1744659787391,5.549,1639.1,1638.9,12.20301]
[1744659788185,5.549,1639.1,1639.0,6.10128]
[1744659788692,8.549,1639.4,1639.2,12.20094]
[1744659788922,5.549,1639.4,1639.3,6.10016]
[1744659789238,11.69,1639.6,1639.4,6.09963]
[1744659789383,13.550564,1639.6,1639.3,13.00334]
[1744659789791,11.69,1639.6,1639.3,6.90328]
[1744659790035,6.3669,1639.9,1639.6,6.09871]
[1744659790239,12.46495,1639.9,1639.6,6.09871]
[1744659790441,5.55,1639.9,1639.5,0.06098843]
[1744659790639,11.64798,1639.9,1639.6,6.09904]
[1744659790791,11.64798,1639.9,1639.5,6.09926]
[1744659790792,12.65001656,1639.9,1639.5,6.09926]
[1744659791149,6.09837,1639.8,1639.5,6.09926]
[1744659791344,12.19688,1639.8,1639.5,6.09926]
[1744659791955,12.19688,1639.8,1639.4,12.98552]
[1744659792256,12.1977,1639.7,1639.3,6.10007]
[1744659792564,6.09871,1639.7,1639.4,10.09976]
[1744659792709,12.19758,1639.7,1639.4,10.09976]
[1744659793057,12.19758,1639.7,1639.4,4.0]
[1744659793414,6.09906,1639.6,1639.4,4.0]
[1744659794154,6.09906,1639.6,1639.3,12.20008]
[1744659794458,6.09871,1639.7,1639.4,6.09975]
[1744659794617,12.19754,1639.7,1639.4,6.09975]
[1744659794830,12.19754,1639.7,1639.3,6.10001]
[1744659795269,6.09923,1639.6,1639.2,6.86415]
[1744659795451,6.09948,1639.5,1639.3,4.0]
[1744659795660,0.7544,1639.5,1639.1,6.10089]
[1744659795861,6.09993,1639.4,1639.1,6.10089]
[1744659796159,12.20002,1639.4,1639.1,6.10089]
[1744659796323,12.40388,1639.5,1639.2,10.10042]
[1744659796529,1.240388,1639.4,1639.2,4.0]
[1744659796972,1.240388,1639.4,1639.1,6.1009]
[1744659797328,7.340508,1639.4,1639.1,6.1009]
[1744659797528,6.10018,1639.3,1639.0,6.92717]
[1744659797781,6.10053,1639.2,1639.1,4.0]
[1744659797931,10.75198792,1639.4,1639.1,10.10087]
[1744659798129,1.07519879,1639.3,1639.1,10.10087]
[1744659798580,6.10057,1639.2,1638.9,6.1016]
[1744659798762,7.17551879,1639.3,1639.0,4.0]
[1744659799079,6.1009,1639.1,1639.0,4.0]
[1744659799224,11.6509,1639.1,1639.0,4.0]
[1744659799427,13.80347284,1639.1,1639.0,4.0]
[1744659799729,6.10158,1639.0,1638.6,6.87218]
[1744659800137,6.10169,1638.9,1638.6,6.10268]
[1744659800530,12.20351,1638.9,1638.6,6.10268]
[1744659800731,12.20355,1638.9,1638.6,6.10268]
[1744659800932,12.20355,1638.9,1638.4,12.20666]
[1744659800933,6.10224,1638.8,1638.4,12.20666]
[1744659801175,12.20458,1638.8,1638.5,4.0]
[1744659801482,6.10224,1638.8,1638.5,10.103]
[1744659802183,8.090645,1638.9,1638.6,6.10263]
[1744659802393,14.192565,1638.9,1638.6,6.10263]
[1744659803196,12.24064,1639.2,1638.9,6.10135]
[1744659803485,6.14,1639.2,1638.9,6.10141]
[1744659803694,12.24054,1639.2,1638.9,12.20295]
[1744659803892,6.14,1639.2,1639.0,6.10123]
[1744659804093,9.10065,1639.2,1638.9,6.10141]
[1744659804394,12.2456096,1639.2,1638.9,6.10141]
[1744659804700,12.2456096,1639.2,1638.9,12.20293]
[1744659804905,6.10065,1639.2,1638.9,6.10141]
[1744659805203,55.48871879,1639.3,1638.9,12.20293]
[1744659805410,49.38839879,1639.3,1639.0,12.20233]
[1744659805605,9.05940843,1639.0,1638.5,0.8131]
[1744659805758,11.65275,1638.9,1638.7,4.0]
[1744659805960,17.75456,1638.9,1638.7,4.0]
[1744659806180,6.10202,1638.8,1638.7,4.0]
[1744659806651,13.72400784,1638.9,1638.7,4.0]
[1744659806652,19.82591784,1638.9,1638.7,4.0]
[1744659806894,7.62225784,1638.9,1638.7,4.0]
[1744659807190,5.551,1638.9,1638.7,6.10236]
[1744659808183,5.551,1638.9,1638.7,6.10225]
[1744659808387,5.551,1638.9,1638.6,12.20534]
[1744659808590,5.551,1638.9,1638.6,6.10267]
[1744659808888,3.75041843,1638.8,1638.1,0.8569]
[1744659809185,6.10316,1638.5,1638.3,4.0]
[1744659809558,12.20655,1638.5,1638.3,4.0]
[1744659809773,6.10351,1638.4,1638.3,4.0]
[1744659811774,12.20722,1638.4,1638.1,6.96138]
[1744659811973,6.10351,1638.4,1638.1,6.96138]
[1744659812612,6.10351,1638.4,1638.1,0.8569]
[1744659812816,6.10351,1638.4,1638.1,0.05]
[1744659812817,6.10413,1638.3,1638.1,0.05]
[1744659812968,6.10426,1638.2,1638.1,0.05]
[1744659813173,6.85636,1638.2,1638.1,0.05]
[1744659814854,13.36437843,1638.2,1638.1,0.05]
[1744659815018,22.10272827,1638.2,1638.1,0.05]
[1744659817556,9.49044984,1638.2,1638.1,0.05]
[1744659817857,15.59470984,1638.2,1638.1,0.05]
[1744659818039,12.41272827,1638.2,1638.1,0.05]
[1744659818238,9.45470984,1638.2,1638.1,0.05]
[1744659819644,15.96272827,1638.2,1638.1,0.05]
[1744659820551,9.45470984,1638.2,1638.1,0.05]
[1744659821528,5.55,1638.5,1638.3,6.10388]
[1744659821812,12.5611183,1638.7,1638.4,6.10339]
[1744659822048,12.5611183,1638.7,1638.4,6.10338]
[1744659822227,5.552,1638.8,1638.5,6.10284]
[1744659822441,5.552,1638.8,1638.6,6.89965]
[1744659822659,5.552,1638.8,1638.7,6.10239]
[1744659822962,5.552,1639.1,1638.7,2.95801843]
[1744659823262,11.65305,1639.1,1638.7,10.10228]
[1744659823415,11.65305,1639.1,1638.8,6.10189]
[1744659824229,59.75858,1639.3,1638.9,6.10144]
[1744659824561,53.65823,1639.3,1638.9,12.20291]
[1744659824984,53.65823,1639.3,1639.0,6.90532]
[1744659825159,47.558,1639.3,1639.0,13.00644]
[1744659825560,47.558,1639.3,1639.0,6.90521]
[1744659825765,53.65816,1639.3,1639.0,6.90521]
[1744659826481,49.61675482,1639.3,1639.0,0.8041]
[1744659826782,12.20138,1639.2,1638.8,6.85614]
[1744659826943,12.20138,1639.2,1638.8,12.95802]
[1744659827151,6.10064,1639.2,1638.9,6.10162]
[1744659827390,11.23893798,1639.2,1638.9,6.10162]
[1744659827755,11.23893798,1639.2,1638.8,6.85614]
[1744659827956,6.10133,1639.0,1638.8,0.7544]
[1744659828150,12.20228,1639.1,1638.8,0.7544]
[1744659828463,12.20214,1639.1,1638.8,0.7544]
[1744659828664,1.220214,1639.0,1638.8,0.7544]
[1744659828864,1.220214,1639.0,1638.7,16.20456]
[1744659829080,6.10102,1639.1,1638.7,10.10223]
[1744659829265,12.20215,1639.1,1638.7,10.10223]
[1744659829451,12.04428798,1639.2,1638.7,10.10223]
[1744659829651,12.04428798,1639.2,1638.8,6.10191]
[1744659829904,11.23888798,1639.2,1638.8,12.2038]
[1744659830109,55.71696482,1639.3,1638.9,6.10153]
[1744659830277,6.1008,1639.2,1638.8,6.10195]
[1744659830481,6.1008,1639.2,1638.8,6.10189]
[1744659830711,12.20164,1639.2,1638.9,6.10159]
[1744659830919,6.1007,1639.2,1638.9,6.10159]
[1744659831094,53.65828,1639.3,1638.9,8.104548]
[1744659831309,6.10054,1639.2,1638.9,12.98571]
[1744659831482,6.10103,1639.1,1638.9,0.7827]
[1744659831686,6.10055,1639.2,1638.7,4.7802]
[1744659831687,6.10053,1639.2,1638.7,4.7802]
[1744659831885,6.10152,1639.0,1638.7,10.88239]
[1744659832609,47.558,1639.3,1638.7,4.7802]
[1744659832811,6.10065,1639.2,1638.8,12.2039]
[1744659833187,12.20154,1639.2,1638.8,12.2039]
[1744659833496,12.20222,1639.1,1638.7,12.98494]
[1744659833703,7.321192,1639.1,1638.8,6.10196]
[1744659834203,6.1013,1639.0,1638.7,6.88257]
[1744659834514,6.8981,1639.0,1638.7,12.20463]
[1744659834712,6.1013,1639.0,1638.7,12.20454]
[1744659835015,6.1013,1639.0,1638.7,6.10226]
[1744659835401,6.1013,1639.0,1638.6,6.10264]
[1744659835577,6.10169,1638.9,1638.7,4.0]
[1744659835977,18.36301,1639.0,1638.7,10.10239]
[1744659836178,5.55,1639.0,1638.7,10.10229]
[1744659836377,11.65131,1639.0,1638.7,10.10229]
[1744659836590,6.10172,1638.9,1638.7,4.0]
[1744659836816,17.75296,1639.0,1638.6,12.20548]
[1744659837114,11.65131,1639.0,1638.7,6.10238]
[1744659837533,11.65131,1639.0,1638.6,6.10265]
[1744659837701,13.430441,1639.0,1638.6,6.10265]
[1744659838000,13.430441,1639.0,1638.7,6.10229]
[1744659838501,5.55,1639.0,1638.8,6.10179]
[1744659838702,5.55,1639.0,1638.7,6.10232]
[1744659838904,11.65138,1639.0,1638.7,6.10232]
[1744659839434,11.65138,1639.0,1638.7,12.20461]
[1744659839754,11.65129,1639.0,1638.7,12.20458]
[1744659840363,11.65129,1639.0,1638.7,12.20457]
[1744659840915,5.55,1639.0,1638.8,6.10181]
[1744659841122,6.14,1639.1,1638.9,6.89235]
[1744659841316,6.14,1639.1,1638.9,12.99389]
[1744659841564,6.10069,1639.2,1638.9,6.89224]
[1744659841853,14.035475,1639.2,1638.9,6.89224]
[1744659842161,6.10178,1638.9,1638.7,0.7907]
[1744659842328,6.10178,1638.9,1638.7,4.0]
[1744659842528,5.548,1639.0,1638.7,10.10204]
[1744659842716,5.548,1639.0,1638.8,6.91643]
[1744659842917,5.548,1639.0,1638.9,6.10165]
[1744659843160,11.64948,1639.0,1638.8,0.8146]
[1744659843359,6.10175,1638.9,1638.6,6.91719]
[1744659843678,12.20353,1638.9,1638.6,6.91719]
[1744659843967,6.10175,1638.9,1638.6,13.01985]
[1744659844457,6.10177,1638.9,1638.6,13.01996]
[1744659845559,17.75096,1639.0,1638.7,6.10239]
[1744659845761,6.10181,1638.9,1638.6,6.91727]
[1744659845969,6.10181,1638.9,1638.6,13.01994]
[1744659846352,14.228706,1639.0,1638.7,6.10227]
[1744659846555,14.228706,1639.0,1638.6,6.91733]
[1744659846743,6.10169,1638.9,1638.6,13.02006]
[1744659847979,12.20357,1638.9,1638.6,6.91733]
[1744659848272,6.10169,1638.9,1638.6,13.02006]
[1744659848973,12.20348,1638.9,1638.6,6.91733]
[1744659849141,14.2365676,1638.9,1638.6,6.91733]
[1744659849343,6.10321,1638.5,1638.2,6.86986]
[1744659849660,6.10321,1638.5,1638.3,4.0]
[1744659849861,12.97608,1638.5,1638.3,4.0]
[1744659850033,6.10351,1638.4,1638.3,4.0]
[1744659850233,7.401122,1638.4,1638.3,4.0]
[1744659850729,10.91455491,1638.4,1638.3,4.0]
[1744659850926,21.28789365,1638.4,1638.3,4.0]
[1744659851163,7.42366,1638.2,1638.1,0.05]
[1744659851365,23.42786491,1638.2,1638.1,0.05]
[1744659851562,26.42786491,1638.2,1638.1,1e-05]
[1744659853353,26.53355773,1638.2,1638.1,1e-05]
[1744659853665,6.92807,1637.5,1637.4,4.0]
[1744659853865,6.92807,1637.5,1637.1,0.818]
[1744659853866,19.887763,1637.5,1637.1,0.818]
[1744659854067,6.1073,1637.4,1637.2,4.0]
[1744659854230,12.47707,1637.5,1637.2,4.0]
[1744659854434,12.47707,1637.5,1637.1,13.0345]
[1744659855479,5.549,1637.5,1637.3,6.10733]
[1744659855636,5.549,1637.5,1637.4,6.10724]
[1744659855837,0.8073,1637.8,1637.5,6.10682]
[1744659856031,7.492772,1638.2,1638.1,6.10463]
[1744659856032,5.86857054,1638.2,1638.1,6.10463]
[1744659856259,0.31857054,1638.2,1638.1,6.10463]
[1744659856450,13.505092,1638.4,1638.0,12.20968]
[1744659856749,6.10389,1638.3,1638.0,12.20969]
[1744659856957,6.10389,1638.3,1637.9,12.97666]
[1744659857156,6.10454,1638.2,1637.8,6.10541]
[1744659857344,6.10446,1638.2,1637.8,12.211]
[1744659857545,6.10467,1638.1,1637.8,12.21102]
[1744659857972,6.10467,1638.1,1637.8,12.21103]
[1744659858156,6.10446,1638.2,1637.8,6.10541]
[1744659858361,6.10446,1638.2,1637.9,6.10522]
[1744659858771,6.10446,1638.2,1637.9,12.21044]
[1744659858979,6.10427,1638.2,1637.9,6.10522]
[1744659859291,12.89329202,1638.2,1637.8,12.21121]
[1744659859490,12.89329202,1638.2,1637.8,6.10559]
[1744659859654,6.78871202,1638.2,1637.8,12.2112]
[1744659859855,12.89315202,1638.2,1637.8,6.10559]
[1744659860081,6.10464,1638.1,1637.7,6.92494]
[1744659860280,12.21057,1638.0,1637.6,12.21272]
[1744659860496,6.10525,1638.0,1637.6,12.21272]
[1744659861265,6.10525,1638.0,1637.7,6.1061]
[1744659862159,12.24509,1638.0,1637.6,12.21271]
[1744659862359,12.24509,1638.0,1637.6,6.10635]
[1744659862589,14.70295982,1638.0,1637.6,6.10635]
[1744659862819,6.14,1638.0,1637.9,6.10537]
[1744659863393,6.14,1638.0,1637.8,6.92187]
[1744659863699,6.14,1638.0,1637.8,13.02746]
[1744659863898,6.14,1638.0,1637.7,12.21204]
[1744659864264,6.10585,1637.8,1637.6,0.8163]
[1744659864458,0.610585,1637.7,1637.4,0.8163]
[1744659864655,6.10585,1637.8,1637.5,16.21338]
[1744659864871,0.7632,1638.0,1637.4,0.8163]
[1744659865096,23.89953,1638.1,1637.8,6.10545]
[1744659865263,23.89953,1638.1,1637.7,6.10608]
[1744659865264,6.10503,1638.0,1637.7,6.10608]
[1744659865599,12.21034,1638.0,1637.6,12.21286]
[1744659865897,1.221034,1637.9,1637.6,12.21286]
[1744659866099,6.10503,1638.0,1637.7,6.10593]
[1744659866397,11.69,1638.1,1637.9,6.10507]
[1744659867659,11.69,1638.1,1638.0,6.105]
[1744659867855,6.14,1638.1,1637.9,6.10507]
[1744659868099,6.14,1638.1,1637.8,12.21127]
[1744659868275,12.24467,1638.1,1637.8,12.21127]
[1744659868874,18.34952,1638.1,1637.8,6.10563]
[1744659869069,20.184424,1638.1,1637.8,6.10563]
[1744659869299,6.10554,1637.9,1637.6,12.21282]
[1744659869604,6.10554,1637.9,1637.6,16.21282]
[1744659869799,8.775604,1638.1,1637.6,4.0]
[1744659870024,0.8775604,1638.0,1637.7,6.106]
[1744659870204,0.8775604,1638.0,1637.8,6.10573]
[1744659870361,6.10518,1638.0,1637.7,6.10601]
[1744659870698,6.10518,1638.0,1637.7,12.21202]
[1744659871103,6.10549,1637.9,1637.6,10.10641]
[1744659871485,12.21103,1637.9,1637.6,10.10641]
[1744659871681,6.1067,1637.6,1637.3,6.92246]
[1744659871900,12.21348,1637.6,1637.4,4.0]
[1744659872212,7.403838,1637.6,1637.4,4.0]
[1744659872419,1.297138,1637.6,1637.4,10.10705]
[1744659872616,0.7579,1637.7,1637.4,4.0]
[1744659872788,9.6002541,1637.9,1637.4,4.0]
[1744659872789,13.05873,1637.9,1637.5,6.10671]
[1744659873210,6.10575,1637.8,1637.4,6.88684]
[1744659873513,12.21176,1637.8,1637.4,12.21425]
[1744659873724,13.517645,1637.8,1637.4,12.21425]
[1744659874403,7.411725,1637.8,1637.5,6.10683]
[1744659874716,7.411725,1637.8,1637.5,6.10673]
[1744659875040,13.517635,1637.8,1637.5,6.10673]
[1744659875389,13.517625,1637.8,1637.5,6.10673]
[1744659875906,1.305885,1637.8,1637.5,6.10673]
[1744659876221,6.9531,1637.9,1637.6,6.10636]
[1744659876423,12.24539,1637.9,1637.6,6.10636]
[1744659876579,6.14,1637.9,1637.6,12.21272]
[1744659876779,19.098692,1638.0,1637.7,6.10611]
[1744659877093,6.853542,1638.0,1637.8,6.10574]
[1744659877285,13.7356402,1638.3,1638.0,6.10485]
[1744659877554,6.14,1638.3,1638.0,6.10485]
[1744659877817,12.24391,1638.3,1638.0,12.20975]
[1744659878226,12.24391,1638.3,1638.2,6.10426]
[1744659878227,6.14,1638.3,1638.2,6.10426]
[1744659878377,5.55,1638.5,1638.2,6.10416]
[1744659878584,6.82232918,1638.5,1638.2,12.20832]
[1744659878820,6.82232918,1638.5,1638.1,0.7734]
[1744659879115,12.20819,1638.3,1637.9,6.8786]
[1744659879330,6.10446,1638.2,1637.9,6.8786]
[1744659879614,1.220841,1638.2,1637.9,0.7734]
[1744659879784,12.95879,1638.4,1638.0,6.10466]
[1744659880131,6.85503,1638.4,1637.9,0.7734]
[1744659880302,6.10474,1638.1,1637.8,6.10567]
[1744659880679,12.20964,1638.1,1637.8,6.10567]
[1744659880918,6.10474,1638.1,1637.8,12.21128]
[1744659881113,6.10474,1638.1,1637.8,6.10561]
[1744659881349,13.27251042,1638.1,1637.8,6.10561]
[1744659881838,13.27247042,1638.1,1637.8,6.10561]
[1744659882138,7.16768042,1638.1,1637.8,12.21124]
[1744659882335,1.06294042,1638.1,1638.0,6.105]
[1744659882520,5.549,1638.1,1638.0,6.105]
[1744659887308,5.549,1638.1,1637.8,6.10561]
[1744659887502,5.549,1638.1,1637.9,6.10536]
[1744659887709,5.549,1638.1,1637.9,12.21062]
[1744659887929,5.549,1638.1,1637.9,6.10526]
[1744659888209,5.549,1638.1,1638.0,6.105]
[1744659888952,12.4405,1638.4,1638.0,6.105]
[1744659889153,11.689,1638.4,1638.1,6.90505]
[1744659889337,25.26762292,1638.4,1638.1,6.90505]
[1744659889645,13.06028292,1638.4,1638.1,0.8006]
[1744659889810,6.10398,1638.3,1638.1,0.8006]
[1744659890010,8.63076629,1638.3,1638.1,0.8006]
[1744659890341,2.52678629,1638.3,1638.1,6.90514]
[1744659890908,8.63082629,1638.3,1638.1,0.8006]
[1744659891113,2.52678629,1638.3,1638.1,0.8006]
[1744659891343,2.52678629,1638.3,1638.1,6.90522]
[1744659892335,2.52678629,1638.3,1638.1,6.90513]
[1744659892659,8.63073629,1638.3,1638.1,0.8006]
[1744659892948,2.52678629,1638.3,1638.1,13.00953]
[1744659893111,2.52678629,1638.3,1638.1,6.905]
[1744659893650,8.63074629,1638.3,1638.1,0.8006]
[1744659895951,6.10426,1638.2,1638.1,0.8006]
[1744659896115,13.07180463,1638.2,1637.9,6.90137]
[1744659896306,13.07185463,1638.2,1637.9,6.90137]
[1744659896511,6.96733463,1638.2,1637.9,13.00664]
[1744659896925,2.52678629,1638.3,1638.0,6.10493]
[1744659897147,2.52678629,1638.3,1638.1,6.10455]
[1744659897648,2.52678629,1638.3,1638.1,6.1046]
[1744659898150,2.52678629,1638.3,1638.1,6.10451]
[1744659898849,2.52678629,1638.3,1638.1,12.20903]
[1744659899216,11.689,1638.4,1638.2,6.10426]
[1744659899429,5.549,1638.4,1638.2,12.20832]
[1744659899924,5.549,1638.4,1638.2,6.10416]
[1744659900439,5.549,1638.4,1638.2,6.90635]
[1744659900639,5.549,1638.4,1638.2,13.0105]
[1744659900812,5.549,1638.4,1638.2,6.90635]
[1744659901013,7.938553,1638.4,1638.2,6.90635]
[1744659901317,2.389553,1638.4,1638.2,6.90635]
[1744659901514,6.14,1638.5,1638.4,6.10351]
[1744659901750,6.10256,1638.7,1638.4,12.99834]
[1744659902025,6.10252,1638.7,1638.4,6.89493]
[1744659902235,6.10364,1638.4,1638.1,6.10453]
[1744659902434,6.714274,1638.3,1638.0,13.02953]
[1744659902648,17.75451,1638.4,1638.0,6.92458]
[1744659902844,11.65064,1638.4,1638.1,6.10455]
[1744659903146,11.65062,1638.4,1638.1,6.10458]
[1744659903351,6.10437,1638.2,1638.0,0.8197]
[1744659903651,6.10437,1638.2,1637.9,6.10533]
[1744659903808,13.507638,1638.2,1637.8,12.98488]
[1744659904015,6.10476,1638.1,1637.9,4.0]
[1744659904318,6.10476,1638.1,1637.8,6.10571]
[1744659904522,12.20963,1638.1,1637.8,6.10571]
[1744659905022,6.10476,1638.1,1637.8,6.10571]
[1744659905337,12.9499268,1638.1,1637.8,6.10571]
[1744659905734,6.8451168,1638.1,1637.8,12.21134]
[1744659905950,3.7796,1638.3,1638.1,6.10444]
[1744659906257,11.687,1638.4,1638.1,6.10442]
[1744659906412,11.687,1638.4,1638.2,6.10423]
[1744659906614,6.14,1638.6,1638.4,6.10335]
[1744659907243,6.1032,1638.5,1638.1,6.90393]
[1744659907444,6.10357,1638.4,1638.1,0.7993]
[1744659907615,6.10357,1638.4,1638.0,6.10497]
[1744659907616,12.208,1638.3,1638.0,6.10497]
[1744659907818,12.208,1638.3,1637.8,12.21142]
[1744659907819,6.10462,1638.2,1637.8,12.21142]
[1744659908056,6.10462,1638.2,1637.9,16.21059]
[1744659908057,7.269782,1638.2,1637.9,16.21059]
[1744659908216,11.687,1638.3,1638.1,6.10452]
[1744659908417,17.79089,1638.3,1638.0,6.91948]
[1744659908651,17.79089,1638.3,1638.0,13.02436]
[1744659908847,17.79089,1638.3,1638.0,6.91948]
[1744659909017,6.10444,1638.2,1637.8,6.10573]
[1744659909216,6.10464,1638.1,1637.8,6.86383]
[1744659909630,6.10464,1638.1,1637.8,12.96944]
[1744659910355,20.260866,1638.3,1637.9,6.10524]
[1744659910650,11.687,1638.3,1638.0,6.10479]
[1744659910841,11.687,1638.3,1638.1,6.10454]
[1744659911359,11.687,1638.3,1638.2,6.10426]
[1744659911562,5.547,1638.3,1638.1,6.10452]
[1744659911764,5.547,1638.3,1638.1,6.10451]